[Event "Croatian 1B League 2022"]
[Site "Porec"]
[Date "2022.09.28"]
[Round "5.5"]
[White "Novak, Ivan"]
[Black "Vujakovic, Branko"]
[Result "1/2-1/2"]
[ECO "D98"]
[WhiteElo "2247"]
[BlackElo "2286"]
[Annotator "TA"]
[PlyCount "120"]
[EventDate "2022.09.24"]
[EventType "team-tourn"]
[EventCountry "CRO"]
[SourceTitle "playchess.com"]
[Source "ChessBase"]
[SourceQuality "1"]
[TimeControl "40/5400+30:1800+30"]

{[%evp 19,120,0,0,0,58,40,32,-16,-17,-14,39,29,68,23,24,0,0,0,0,0,7,0,31,31,90,90,12,16,93,93,93,93,93,93,95,93,131,90,112,117,107,23,23,0,0,0,45,0,93,85,93,19,93,70,69,0,0,0,0,0,0,0,0,-65,-75,-106,86,0,0,0,28,29,29,0,0,0,0,0,0,0,0,0,0,0,0,0,0,0,0,0,0,0,0,0,8,0,0,0,0,0,0,0,0]} 1. d4 {[%emt 0:00:03]} Nf6 {[%emt 0:00:01]} 2. c4 {[%emt 0:00:13]} g6 {[%emt 0:00:09]} 3. Nc3 {[%emt 0:00:19]} d5 {[%emt 0:00:03]} 4. Nf3 {[%emt 0:00:21]} Bg7 {[%emt 0:00:11]} 5. Qb3 {[%emt 0:00:54]} dxc4 {[%emt 0:00:38]} 6. Qxc4 {[%emt 0:00:05]} O-O {[%emt 0:00:12]} 7. e4 {[%emt 0:00:47]} Bg4 {[%emt 0:04:43]} 8. Be2 {[%emt 0:02:15]} Nfd7 {[%emt 0:00:22]} 9. Be3 {[%emt 0:04:05]} Nb6 {[%emt 0:08:01]} 10. Qd3 {[%emt 0:05:52]} Nc6 {[%emt 0:04:36]} 11. Rd1 {[%emt 0:01:32] D98: Grünfeld: Russian System: 7 e4 Bg4 .} e5 {[%emt 0:14:11]} (11... Bxf3 $11 12. gxf3 e6) 12. d5 {[%emt 0:04:48]} Bxf3 {[%emt 0:01:07]} 13. gxf3 {[%emt 0:01:52]} (13. dxc6 $14 {is more appropriate.} Qxd3 14. Rxd3 Bxe2 15. Nxe2) 13... Nd4 $1 $11 {[%emt 0:00:12]} 14. Nb5 {[%emt 0:18:31][%cal Rb5d4]} Nxb5 {[%emt 0:11:32]} (14... Nxe2 $11 15. Kxe2 a6) 15. Qxb5 $14 {[%emt 0:00:08]} Re8 {[%emt 0:00:03] [#]} 16. Qd3 $146 {[%emt 0:13:41]} ({Predecessor:} 16. O-O Bf8 17. Rc1 Bd6 18. Rc2 Kg7 19. Rfc1 Re7 20. a4 Rb8 21. a5 Nc8 22. Bf1 {1-0 (35) Kaman,A (2209)-Doros,R (2238) Hungary 2010}) 16... Nc8 {[%emt 0:00:39]} 17. O-O {[%emt 0:07:52]} Nd6 {[%emt 0:00:27]} 18. Rc1 {[%emt 0:00:25]} a6 {[%emt 0:09:11]} 19. a4 {[%emt 0:04:59]} Rc8 {[%emt 0:00:38]} 20. Rc2 {[%emt 0:04:55]} Qh4 {[%emt 0:06:46]} 21. Rfc1 {[%emt 0:00:15]} Bh6 {[%emt 0:12:45]} (21... Qd8 $14) 22. Rxc7 $16 {[%emt 0:01:29]} Rxc7 {[%emt 0:02:10]} (22... Bxe3 $16 23. Qxe3 Rxc7 24. Rxc7 f5) 23. Rxc7 $11 {[%emt 0:00:01]} Bf4 {[%emt 0:00:17]} (23... Bxe3 $1 $11 {keeps the balance.} 24. Qxe3 Qd8) 24. Bxf4 $16 {[%emt 0:02:02]} Qxf4 {[%emt 0:00:54]} 25. Qe3 {[%emt 0:00:24] aiming for Qxf4.} Qf6 {[%emt 0:01:39]} 26. b4 {[%emt 0:03:42]} Re7 {[%emt 0:02:51]} 27. Rc2 {[%emt 0:07:25]} Kg7 {[%emt 0:00:12]} 28. Kg2 {[%emt 0:04:22]} Qh4 {[%emt 0:04:46]} 29. b5 {[%emt 0:00:29]} axb5 {[%emt 0:00:13]} 30. axb5 {[%emt 0:00:00]} (30. Bxb5 $16 f5 31. Bd3) 30... h6 $11 {[%emt 0:01:32]} 31. b6 {[%emt 0:01:56]} Re8 {[%emt 0:00:27]} 32. Rc7 {[%emt 0:04:00]} Qf6 {[%emt 0:02:16]} 33. Bd3 {[%emt 0:01:06]} g5 {[%emt 0:01:52]} (33... Ra8 $11) 34. Qc5 {[%emt 0:01:21]} Rd8 {[%emt 0:00:27]} 35. Bb5 {[%emt 0:02:07] White is much more active.} ({Better is} 35. Be2 $16) 35... Qf4 {[%emt 0:02:04]} (35... g4 $11 36. fxg4 Qf4) 36. Bd7 {[%emt 0:01:07]} Nxe4 {[%emt 0:05:03]} 37. fxe4 {[%emt 0:02:01]} ({White should try} 37. Qb4 $1 $14 Nf6 38. Qxf4 gxf4 39. Be6 Nxd5 40. Rxf7+ Kg6 41. Rxb7) 37... Rxd7 $1 $14 {[%emt 0:01:00][%mdl 4096] Endgame KQR-KQR} 38. Qe3 {[%emt 0:00:32] Threatens to win with Qxf4.} Qg4+ {[%emt 0:00:45]} 39. Kf1 {[%emt 0:00:11]} Qd1+ {[%emt 0:04:20]} 40. Qe1 {[%emt 0:00:00]} Qg4 {[%emt 0:00:00]} 41. Qe2 {[%emt 0:05:23]} (41. Rxd7 $11 Qh3+ 42. Kg1 Qg4+ 43. Kh1 Qf3+ 44. Kg1 Qg4+ 45. Kh1 Qf3+ 46. Kg1 Qg4+) 41... Qh3+ $15 {[%emt 0:01:47]} 42. Kg1 {[%emt 0:00:01] [#]} Kf8 $2 {[%emt 0:08:57] [#]} (42... Rd6 $1 $17 {keeps the pressure on.} 43. Rxb7 Rf6) 43. f3 {[%emt 0:01:04]} (43. Qd1 $1 $16) 43... Rd6 $1 $11 {[%emt 0:05:15]} 44. Rxb7 {[%emt 0:00:45] Black must now prevent Qf2.} Qc8 {[%emt 0:00:38]} 45. Rc7 {[%emt 0:13:56]} Qb8 {[%emt 0:00:01]} 46. Qa6 {[%emt 0:01:25] Intending Rc8+ and mate.} (46. Qc2 {keeps more tension.} Qxb6+ 47. Kg2 Qb4 48. Rc4) 46... Qxb6+ {[%emt 0:04:08] The position is equal.} 47. Qxb6 Rxb6 {[%emt 0:00:01] KR-KR} 48. Kg2 {[%emt 0:00:15]} h5 {[%emt 0:00:37]} 49. Kg3 {[%emt 0:00:16]} Rb3 {[%emt 0:02:35]} 50. h3 {[%emt 0:01:27]} Rd3 {[%emt 0:00:13]} 51. Rc6 {[%emt 0:02:04]} Kg7 {[%emt 0:00:09]} 52. Kf2 {[%emt 0:02:20]} Rd2+ {[%emt 0:01:31]} ({Don't do} 52... f5 53. exf5 Rxd5 54. Rg6+ Kf7 55. Rxg5 $14) 53. Kg3 {[%emt 0:02:01]} Rd3 {[%emt 0:00:12]} 54. Rc2 {[%emt 0:02:30]} Kf6 {[%emt 0:02:10]} 55. Kf2 {[%emt 0:01:21]} Rd1 {[%emt 0:03:11]} 56. Rc6+ {[%emt 0:01:18]} Ke7 {[%emt 0:00:00]} 57. Rh6 {[%emt 0:00:57]} h4 $1 {[%emt 0:00:00]} 58. Rh5 {[%emt 0:00:18]} Kf6 {[%emt 0:00:00]} 59. Rh6+ {[%emt 0:00:52]} Ke7 {[%emt 0:00:00]} 60. Rh5 {[%emt 0:00:24]} Kf6 {[%emt 0:00:00] Weighted Error Value: White=0.20 (precise) /Black=0.22 (precise)} 1/2-1/2

[Event "Croatian 1B League 2022"]
[Site "Porec"]
[Date "2022.09.28"]
[Round "5.6"]
[White "Pecnik, Leo"]
[Black "Havas, Janko"]
[Result "1/2-1/2"]
[ECO "B07"]
[WhiteElo "2317"]
[BlackElo "2127"]
[Annotator "TA"]
[PlyCount "46"]
[EventDate "2022.09.24"]
[EventType "team-tourn"]
[EventCountry "CRO"]
[SourceTitle "playchess.com"]
[Source "ChessBase"]
[SourceQuality "1"]
[TimeControl "40/5400+30:1800+30"]

{[%evp 11,46,52,72,52,69,54,68,47,65,59,71,27,31,35,26,0,39,49,39,37,36,39,39,30,40,14,175,82,66,33,41,36,188,129,128,0,4]} 1. d4 {[%emt 0:00:04]} Nf6 {[%emt 0:00:13]} 2. Nc3 {[%emt 0:00:05]} d6 {[%emt 0:01:13]} 3. e4 {[%emt 0:00:11]} c6 {[%emt 0:00:36]} 4. f4 {[%emt 0:00:32]} Qa5 {[%emt 0:02:14]} 5. Bd2 {[%emt 0:05:23]} Qb6 {[%emt 0:05:12]} 6. Nf3 {[%emt 0:00:16]} Bg4 {[%emt 0:04:56]} 7. h3 {[%emt 0:13:56] B07: Pirc Defence: Miscellaneous Systems.} Bxf3 {[%emt 0:09:23]} 8. Qxf3 {[%emt 0:00:02]} Qxd4 {[%emt 0:15:46]} 9. O-O-O {[%emt 0:01:16] aiming for Be1. White is slightly better.} Nbd7 {[%emt 0:01:18]} 10. g4 {[%emt 0:08:33][%mdl 1024] White has compensation.} g6 {[%emt 0:17:52]} 11. a3 {[%emt 0:19:57] Strongly threatening Be3.} Qb6 {[%emt 0:01:11]} 12. Bc4 {[%emt 0:00:12][%cal Oe4e5] [#]} Bg7 $146 {[%emt 0:03:46]} ({Predecessor:} 12... Qc7 13. Rhe1 e6 14. g5 Nh5 15. Qf2 b5 16. Be2 Ng7 17. Be3 a5 18. Bg4 b4 {1-0 (29) Rothkegel,J (1825)-Sparwel,O (1929) Germany 2019}) 13. Rhe1 {[%emt 0:01:57] Black must now prevent e5.} O-O {[%emt 0:19:36]} 14. e5 {[%emt 0:09:12]} dxe5 {[%emt 0:00:58]} 15. fxe5 {[%emt 0:00:17]} Nd5 {[%emt 0:02:00]} 16. Bxd5 {[%emt 0:12:37]} ({Much worse is} 16. Nxd5 cxd5 17. Qxd5 Qc7 $11) 16... cxd5 {[%emt 0:00:07]} 17. Nxd5 {[%emt 0:00:06]} Qe6 {[%emt 0:00:10]} 18. Bc3 {[%emt 0:01:41] And now Nc7 would win.} Rac8 {[%emt 0:04:07] [#] Inhibits Nc7.} (18... Rad8 $11 {and Black is okay.}) 19. Kb1 {[%emt 0:01:58]} (19. Nf6+ $1 $18 {[%mdl 512] has better winning chances.} exf6 20. exf6 Rxc3 21. Qxc3 Qxf6 22. Rxd7 Qg5+ 23. Qd2) 19... Nc5 $16 {[%emt 0:02:48]} 20. Bb4 {[%emt 0:08:02] White is more active.} b6 {[%emt 0:01:25]} 21. Nf4 {[%emt 0:01:13]} Qc4 {[%emt 0:00:41]} (21... Qc6 $1 $14 22. Qxc6 Rxc6) 22. b3 {[%emt 0:00:26]} (22. Nd5 $18 Rfe8 23. Rf1) 22... Qb5 {[%emt 0:02:08]} 23. Qe2 {[%emt 0:04:05]} ({White should play} 23. Nd5 $16 Rfe8 24. Rf1) 23... Qxe2 {[%emt 0:00:23] Weighted Error Value: White=0.35/Black=0.32} 1/2-1/2

[Event "Croatian 1B League 2022"]
[Site "Porec"]
[Date "2022.09.28"]
[Round "5.7"]
[White "Dragnev, Valentin"]
[Black "Ghersinich, Enrico"]
[Result "1-0"]
[ECO "B76"]
[WhiteElo "2544"]
[BlackElo "2145"]
[Annotator "TA"]
[PlyCount "77"]
[EventDate "2022.09.24"]
[EventType "team-tourn"]
[EventCountry "CRO"]
[SourceTitle "playchess.com"]
[Source "ChessBase"]
[SourceQuality "1"]
[TimeControl "40/5400+30:1800+30"]

{[%evp 26,77,34,43,30,34,43,42,80,98,90,86,118,109,135,135,143,149,163,139,179,149,145,133,154,145,175,172,276,279,272,259,255,239,376,384,356,378,545,551,662,662,663,691,989,954,935,924,1088,1035,1762,1650,1144,1137]} 1. e4 {[%emt 0:00:12]} c5 {[%emt 0:00:17]} 2. Nf3 {[%emt 0:00:06]} d6 {[%emt 0:00:39]} 3. d4 {[%emt 0:00:08]} cxd4 {[%emt 0:00:21]} 4. Nxd4 {[%emt 0:00:07]} Nf6 {[%emt 0:00:07]} 5. Nc3 {[%emt 0:00:05]} g6 {[%emt 0:02:01]} 6. Be3 {[%emt 0:00:49]} Bg7 {[%emt 0:00:10]} 7. f3 {[%emt 0:00:10]} O-O {[%emt 0:00:08]} 8. Qd2 {[%emt 0:00:08]} Nc6 {[%emt 0:00:09]} 9. O-O-O {[%emt 0:00:20]} d5 {[%emt 0:03:30]} 10. exd5 {[%emt 0:00:53]} Nxd5 {[%emt 0:00:08]} 11. Nxc6 {[%emt 0:00:11]} bxc6 {[%emt 0:00:05]} 12. Bd4 {[%emt 0:00:07]} Bxd4 {[%emt 0:00:10]} 13. Qxd4 {[%emt 0:00:06]} Qb6 {[%emt 0:00:05]} 14. Na4 {[%emt 0:00:11]} Qc7 {[%emt 0:00:06] B76: Sicilian Dragon: Yugoslav Attack, 9 g4 and 9 0-0-0.} 15. Bc4 {[%emt 0:01:13]} Rd8 {[%emt 0:00:33]} 16. Nc5 {[%emt 0:00:55]} (16. Bxd5 cxd5 17. Rd2 Rb8 $15) 16... Rb8 {[%emt 0:05:20] White is slightly better.} 17. Bb3 {[%emt 0:00:54] White is more active.} Rb4 {[%emt 0:39:44] [#]} 18. Qf2 $146 {[%emt 0:01:01]} ({Predecessor:} 18. Qd2 Qb6 19. Nd3 Rb5 20. Ne5 a5 21. Qd4 c5 22. Qf2 Bb7 23. Bxd5 Rxd5 24. c4 Rxe5 25. cxb5 Qxb5 {1-0 (46) Kovacevic,A (2485)-Vucinic,G (2349) Vrnjacka Banja 2021}) 18... a5 {[%emt 0:09:53][%cal Oa5a4]} 19. Rd2 {[%emt 0:10:00]} Rd6 {[%emt 0:12:34]} 20. Rhd1 {[%emt 0:06:23]} Rf6 {[%emt 0:04:45]} 21. a3 {[%emt 0:22:15]} Rb8 {[%emt 0:03:20]} 22. g3 {[%emt 0:02:42]} (22. c4 $6 Nf4 $14) 22... a4 {[%emt 0:06:54]} 23. Nxa4 {[%emt 0:09:28]} (23. Bxd5 $6 cxd5 24. Rxd5 Bb7 $16) 23... Bg4 {[%emt 0:00:27] [#]} 24. Rd3 {[%emt 0:00:45]} (24. Bxd5 $6 cxd5 25. Rd3 e5 $14) 24... Bf5 {[%emt 0:02:04] [#]} 25. Rd4 {[%emt 0:01:38]} Qa7 {[%emt 0:01:44] Prevents Nc5.} 26. R1d2 {[%emt 0:17:48]} (26. Bxd5 cxd5 27. R1d2 e5 $11) 26... e5 {[%emt 0:03:51] [#]} (26... Kg7 $142 27. Bxd5 cxd5) 27. Rb4 $1 $18 {[%emt 0:01:38][%mdl 512]} Qa8 {[%emt 0:01:21]} (27... Qc7 28. Rxb8+) 28. Rxb8+ {[%emt 0:02:49]} Qxb8 {[%emt 0:00:02]} 29. Qc5 {[%emt 0:05:25]} ({Resist} 29. Bxd5 $6 cxd5 30. Nc3 (30. Rxd5 Be4 $16) 30... Rb6 $18) 29... Qe8 {[%emt 0:02:21]} (29... Bd7 $142 30. Rd1 Kg7) 30. Bxd5 {[%emt 0:02:49]} cxd5 {[%emt 0:00:06]} 31. Nc3 {[%emt 0:00:08]} ({Not} 31. Rxd5 Rc6 32. Rd8 (32. Rxe5 $2 Qa8 $19) 32... Qxd8 $16) 31... d4 {[%emt 0:01:58]} (31... Be6 $142 32. Nxd5 Rxf3 33. Ne7+ Kg7 34. Qxe5+ Kh6) 32. Nd5 {[%emt 0:00:25] White is clearly winning.} Ra6 {[%emt 0:00:04]} 33. g4 {[%emt 0:02:30]} Bd7 {[%emt 0:00:31]} 34. Nc7 {[%emt 0:00:27][%csl LRa6,LRe8]} Qc8 {[%emt 0:01:19]} 35. Nxa6 {[%emt 0:00:19]} Qxa6 {[%emt 0:00:12]} 36. Qxe5 {[%emt 0:00:55]} Qf1+ {[%emt 0:00:14]} 37. Rd1 {[%emt 0:00:01]} Qxf3 {[%emt 0:00:11]} 38. Rxd4 {[%emt 0:00:37]} Qf1+ {[%emt 0:01:18]} 39. Rd1 {[%emt 0:00:11] Weighted Error Value: White=0.03 (flawless) /Black=0.41} 1-0

[Event "Croatian 1B League 2022"]
[Site "Porec"]
[Date "2022.09.28"]
[Round "5.8"]
[White "Licardo, Renato"]
[Black "Shengelia, David"]
[Result "0-1"]
[ECO "B30"]
[WhiteElo "2223"]
[BlackElo "2451"]
[Annotator "TA"]
[PlyCount "44"]
[EventDate "2022.09.24"]
[EventType "team-tourn"]
[EventCountry "CRO"]
[SourceTitle "playchess.com"]
[Source "ChessBase"]
[SourceQuality "1"]
[TimeControl "40/5400+30:1800+30"]

{[%evp 11,44,31,27,-11,28,0,0,-18,0,8,14,-16,66,79,66,60,102,36,73,56,47,33,47,0,0,-46,-52,-85,-78,-195,-117,-108,-108,-487,-469]} 1. e4 {[%emt 0:00:33]} c5 {[%emt 0:00:08]} 2. Nf3 {[%emt 0:00:16][%cal Bg1f3,Bf3d4,Bd4b3][%mdl 32]} Nc6 {[%emt 0:00:15]} 3. Bb5 {[%emt 0:00:23]} e6 {[%emt 0:00:42]} 4. O-O {[%emt 0:00:33]} Nge7 {[%emt 0:00:18]} 5. d4 {[%emt 0:01:27]} cxd4 {[%emt 0:02:13]} 6. Nxd4 {[%emt 0:00:06]} Qb6 {[%emt 0:04:17]} 7. Bxc6 {[%emt 0:00:48] B30: Sicilian: 2...Nc6 3 Bb5, lines without ...g6.} Nxc6 {[%emt 0:03:27]} 8. Nb3 {[%emt 0:00:22]} Be7 {[%emt 0:01:00]} 9. c4 {[%emt 0:01:28] The position is equal.} O-O {[%emt 0:02:43]} 10. Nc3 {[%emt 0:01:00]} Qc7 {[%emt 0:04:11]} 11. Be3 {[%emt 0:01:33] [#]} Na5 $146 {[%emt 0:10:44]} (11... Ne5 $11) ({Predecessor:} 11... b6 12. Rc1 Bb7 13. Nb5 Qe5 14. Qxd7 Rab8 15. f3 Rfd8 16. Qc7 Bf6 17. Qxe5 Bxe5 {1-0 (54) Novikov,M (2501)-Timofeev,A (2549) Sochi 2017}) 12. Nxa5 $14 {[%emt 0:06:31]} Qxa5 {[%emt 0:00:08]} 13. Bf4 {[%emt 0:01:32] Inhibits d6.} Qb4 {[%emt 0:04:31]} 14. Qd3 {[%emt 0:06:33]} (14. Nb5 $16) 14... b6 {[%emt 0:00:34]} 15. a3 {[%emt 0:01:48]} Qb3 {[%emt 0:10:17]} (15... Qxb2 $2 16. Rfb1 Bxa3 17. Rxb2 Bxb2 18. Rd1 $18) 16. Rfd1 {[%emt 0:04:57][%cal Oc3d5] [#] Hoping for Nd5!} Bc5 $1 {[%emt 0:00:12]} (16... Qxb2 $2 17. Rdb1 Bxa3 18. Rxb2 Bxb2 19. Rd1 Bxc3 20. Qxc3 $18) 17. Nb5 {[%emt 0:09:31]} (17. Rd2 $14 {is superior.}) 17... Qxb2 $11 {[%emt 0:01:18]} 18. Qg3 {[%emt 0:00:09]} (18. Be3 $11 Qe5 19. Bxc5 bxc5 20. Re1) 18... Bb7 $15 {[%emt 0:01:48]} 19. Nd6 {[%emt 0:00:11]} Bc6 {[%emt 0:01:11] A strong pair of Bishops.} 20. Rab1 {[%emt 0:03:03]} (20. Kf1 $17 {is a better defense.} Qf6 21. a4) 20... Qf6 {[%emt 0:01:26]} ({Black should play} 20... Qxa3 $19 21. Rb3 Qa2) 21. Re1 $17 {[%emt 0:15:04]} Qg6 {[%emt 0:03:16]} 22. Qh3 $2 {[%emt 0:00:52][%mdl 8192] [#]} (22. Rb3 $17) 22... e5 {[%emt 0:00:40] Weighted Error Value: White=0.66/Black=0.20 (precise)} 0-1

[Event "Croatian 1B League 2022"]
[Site "Porec"]
[Date "2022.09.28"]
[Round "5.9"]
[White "Sertic, Rudolf"]
[Black "Markovic, Alen"]
[Result "1-0"]
[ECO "D38"]
[WhiteElo "2357"]
[BlackElo "2233"]
[Annotator "TA"]
[PlyCount "99"]
[EventDate "2022.09.24"]
[EventType "team-tourn"]
[EventCountry "CRO"]
[SourceTitle "playchess.com"]
[Source "ChessBase"]
[SourceQuality "1"]
[TimeControl "40/5400+30:1800+30"]

{[%evp 22,99,0,-12,0,0,0,-12,13,-12,10,-20,-20,-22,-6,-21,-16,-94,-49,-74,194,187,197,186,181,189,184,198,233,137,112,140,135,61,109,27,65,50,51,0,0,0,45,0,0,0,0,0,0,6,39,14,58,34,185,154,210,210,204,205,208,-46,2,0,155,16,166,160,191,214,159,13,638,628,623,593,4133,2130,1879,1738]} 1. Nf3 {[%emt 0:00:04]} Nf6 {[%emt 0:00:52]} 2. c4 {[%emt 0:00:24]} e6 {[%emt 0:00:36]} 3. Nc3 {[%emt 0:01:41]} d5 {[%emt 0:00:10]} 4. d4 {[%emt 0:03:16]} Bb4 {[%emt 0:01:05]} 5. Qa4+ {[%emt 0:02:11]} Nc6 {[%emt 0:00:21]} 6. cxd5 {[%emt 0:03:27]} exd5 {[%emt 0:02:01]} 7. Bg5 {[%emt 0:00:15]} h6 {[%emt 0:03:02]} 8. Bxf6 {[%emt 0:00:07]} Qxf6 {[%emt 0:00:19]} 9. e3 {[%emt 0:00:06]} O-O {[%emt 0:01:09]} 10. Be2 {[%emt 0:00:24]} Be6 {[%emt 0:04:25]} 11. O-O {[%emt 0:00:33]} a6 {[%emt 0:00:55]} 12. Rfc1 {[%emt 0:04:21]} Rfd8 {[%emt 0:06:19] D38: Queen's Gambit Declined: Ragozin Defence (4 Nf3 Bb4).} 13. Qd1 {[%emt 0:01:20]} Bd6 {[%emt 0:12:38]} 14. Na4 {[%emt 0:03:58]} Ne7 {[%emt 0:05:06] The position is equal.} 15. Nc5 {[%emt 0:01:34]} Bc8 {[%emt 0:02:08]} 16. Qf1 {[%emt 0:10:33]} a5 {[%emt 0:00:59]} 17. a3 {[%emt 0:21:17] [#]} g5 $146 {[%emt 0:09:33]} ({Predecessor:} 17... b6 18. Na4 Bd7 19. Nc3 c5 20. Rd1 Bf5 21. Rac1 c4 22. Nd2 Rac8 23. g3 Bb8 {0-1 (42) Fuchs,R-Sanguineti,R Varna 1958}) 18. b4 {[%emt 0:04:57]} b6 {[%emt 0:01:07]} 19. Na6 {[%emt 0:05:09]} (19. Nd3 $11 {keeps the balance.}) 19... axb4 {[%emt 0:01:13]} 20. axb4 {[%emt 0:00:40]} Rd7 $2 {[%emt 0:11:00][%mdl 8192] [#]} (20... c6 $17 {stays on course.}) 21. Nc5 $1 $18 {[%emt 0:06:53][%mdl 512]} bxc5 {[%emt 0:02:36]} 22. Rxa8 {[%emt 0:01:17]} cxb4 {[%emt 0:00:17]} 23. Ba6 {[%emt 0:02:24]} Rd8 {[%emt 0:00:05]} 24. Bxc8 {[%emt 0:00:57]} Nxc8 {[%emt 0:00:04][%cal Be7c8,Bc8b6,Bb6a4,Ba4c3][%mdl 32]} 25. Qa6 {[%emt 0:01:03]} ({White should try} 25. Ne5 $18) 25... Nb6 $16 {[%emt 0:00:27]} 26. Rxd8+ {[%emt 0:00:21]} Qxd8 {[%emt 0:00:00]} 27. Ne1 {[%emt 0:05:24] White is more active.} (27. Ne5 $16) 27... Kg7 {[%emt 0:03:45]} (27... Nc4 $14 {feels stronger.}) 28. Qd3 {[%emt 0:03:45]} (28. Nd3 $16) 28... Qa8 {[%emt 0:01:42]} 29. Rb1 {[%emt 0:05:03]} Na4 {[%emt 0:07:51]} 30. Nc2 {[%emt 0:03:27]} ({Better is} 30. Ra1 $14 Qe8 31. Nf3) 30... Nc3 $11 {[%emt 0:00:16]} 31. Rb2 {[%emt 0:00:24]} (31. Nxb4 $2 Nxb1 32. Qxb1 Bxb4 $19) 31... Qa4 {[%emt 0:01:17]} 32. g3 {[%emt 0:00:27]} g4 {[%emt 0:03:43]} 33. Kg2 {[%emt 0:00:12]} h5 {[%emt 0:00:36]} 34. Qf1 {[%emt 0:02:42]} Kg6 {[%emt 0:05:58]} 35. Qe1 {[%emt 0:01:17]} f5 {[%emt 0:01:45]} 36. Qf1 {[%emt 0:01:30]} Kg5 {[%emt 0:03:07]} 37. h3 {[%emt 0:00:45]} h4 $2 {[%emt 0:06:10]} (37... Kf6 $14) 38. gxh4+ {[%emt 0:00:29]} Kxh4 {[%emt 0:00:05]} (38... Kh5 $16 {was necessary.}) 39. hxg4 $18 {[%emt 0:00:07]} fxg4 {[%emt 0:00:08] [#]} 40. f4 {[%emt 0:00:00][%cal Rf1h1]} gxf3+ {[%emt 0:00:00]} 41. Kxf3 $2 {[%emt 0:01:59]} (41. Qxf3 $18 {aiming for Qh3+.} Ne4 42. Qf7) 41... Kg5 {[%emt 0:02:40]} (41... Qd7 $1 $15 {is superior.} 42. Qh1+ Kg5 43. Qg2+ Kh4 44. Qh1+ Kg5 45. Qg1+ (45. Qg2+ Kh5 $15) 45... Kh5 46. Qh1+ Kg6 47. Qg2+ Kf6) 42. Kg2 $36 {[%emt 0:21:18][%mdl 2048] White fights for an advantage.} Ne4 $2 {[%emt 0:08:08]} (42... Qd7 $11 43. Kg1 Qg4+ 44. Qg2 Na4 45. Qxg4+ Kxg4) 43. Ne1 {[%emt 0:01:16]} (43. Qf7 $16 Kh6 44. Qe6+ (44. Qxd5 Qe8 $18) 44... Kg7 45. Qxd5) 43... Qa3 {[%emt 0:11:00]} (43... Qe8 $11) 44. Nd3 $18 {[%emt 0:00:49] Black must now prevent Kh3. Really sharp!} Ng3 {[%emt 0:00:44]} 45. Qd1 {[%emt 0:00:06]} Nf5 {[%emt 0:00:56] [#]} 46. Re2 {[%emt 0:00:22]} (46. Kh3 $1 $16 {And now Rf2 would win.} Kf6 47. Rf2) 46... Kf6 $2 {[%emt 0:05:45][%mdl 8192]} (46... Qa8 $11) 47. Rf2 {[%emt 0:01:37] White is clearly winning.} Ke6 {[%emt 0:00:54]} 48. Qe2 {[%emt 0:00:25]} Qa8 {[%emt 0:03:38] Threatens to win with ...Qg8+.} 49. Qg4 {[%emt 0:00:43] Against Qg8} Qf8 {[%emt 0:00:26]} 50. e4 {[%emt 0:01:01] Weighted Error Value: White=0.31/Black=0.53} 1-0